fUSD/lending_fUSD_20250616
["ID","MTS","AMOUNT","RATE_DAILY","PERIOD"]
[366132926,1750079446138,-5561.66277943,0.00016438,2]
[366132927,1750079446150,-5561.66277943,0.00016438,2]
[366132928,1750079446162,-5561.66277943,0.00016438,2]
[366132929,1750079446174,-5561.66277943,0.00016438,2]
[366132930,1750079447037,-5561.66277943,0.00016438,2]
[366132931,1750079447069,-5561.66277943,0.00016438,2]
[366132932,1750079447095,-5561.66277943,0.00016438,2]
[366132933,1750079447108,-4144.24043342,0.00016438,2]
[366132934,1750079447134,-1417.42234601,0.00016438,2]
[366132935,1750079447143,-243.68559869,0.00016438,2]
[366132936,1750079447198,-663.38440131,0.00016438,2]
[366132937,1750079447209,-490.0,0.00016438,2]
[366132938,1750079447218,-490.0,0.00016438,2]
[366132939,1750079447228,-490.0,0.00016438,2]
[366132940,1750079447238,-490.0,0.00016438,2]
[366132941,1750079447248,-5506.04615163,0.00016438,2]
[366132942,1750079447257,-5506.04615163,0.00016438,2]
[366132943,1750079447267,-5506.04615163,0.00016438,2]
[366132944,1750079447277,-5506.04615163,0.00016438,2]
[366132945,1750079447287,-5506.04615163,0.00016438,2]
[366132946,1750079447297,-5506.04615163,0.00016438,2]
[366132947,1750079447307,-5506.04615163,0.00016438,2]
[366132948,1750079447316,-5506.04615163,0.00016438,2]
[366132949,1750079447326,-5506.04615163,0.00016438,2]
[366132950,1750079447336,-5506.04615163,0.00016438,2]
[366132951,1750079447346,-5506.04615163,0.00016438,2]
[366132952,1750079447355,-5506.04615163,0.00016438,2]
[366132953,1750079447366,-5506.04615163,0.00016438,2]
[366132954,1750079447376,-5506.04615163,0.00016438,2]
[366132955,1750079447385,-5506.04615163,0.00016438,2]
[366132956,1750079447395,-5506.04615163,0.00016438,2]
[366132957,1750079447404,-5506.04615163,0.00016438,2]
[366132958,1750079447414,-5506.04615163,0.00016438,2]
[366132959,1750079447424,-5506.04615163,0.00016438,2]
[366132960,1750079447433,-490.0,0.00016438,2]
[366132961,1750079447443,-490.0,0.00016438,2]
[366132962,1750079447453,-490.0,0.00016438,2]
[366132963,1750079447463,-490.0,0.00016438,2]
[366132964,1750079447473,-490.0,0.00016438,2]
[366132965,1750079447483,-572.42,0.00016438,2]
[366132966,1750079447494,-490.0,0.00016438,2]
[366132967,1750079447503,-490.0,0.00016438,2]
[366132968,1750079447513,-490.0,0.00016438,2]
[366132969,1750079447523,-490.0,0.00016438,2]
[366132970,1750079447533,-490.0,0.00016438,2]
[366132971,1750079447543,-5506.04615161,0.00016438,2]
[366132972,1750079447554,-490.0,0.00016438,2]
[366132973,1750079447566,-544.81,0.00016438,2]
[366132974,1750079447576,-977.7,0.00016438,2]
[366132975,1750079447586,-490.0,0.00016438,2]
[366132976,1750079447596,-500.0,0.00016438,2]
[366132977,1750079447606,-500.0,0.00016438,2]
[366132978,1750079447616,-490.0,0.00016438,2]
[366132979,1750079447626,-545.20717307,0.00016438,2]
[366132980,1750079447636,-652.57,0.00016438,2]
[366132981,1750079447647,-490.0,0.00016438,2]
[366132982,1750079447657,-490.0,0.00016438,2]
[366132983,1750079447671,-580.4,0.00016438,2]
[366132984,1750079447682,-490.0,0.00016438,2]
[366132985,1750079447692,-490.0,0.00016438,2]
[366132986,1750079447702,-490.0,0.00016438,2]
[366132987,1750079447714,-490.0,0.00016438,2]
[366132988,1750079447724,-490.0,0.00016438,2]
[366132989,1750079447734,-490.0,0.00016438,2]
[366132990,1750079447744,-490.0,0.00016438,2]
[366132991,1750079447754,-490.0,0.00016438,2]
[366132992,1750079447764,-250.0,0.00016438,2]
[366132993,1750079447774,-840.53,0.00016438,2]
[366132994,1750079447784,-606.15,0.00016438,2]
[366132995,1750079447793,-494.96482603,0.00016438,2]
[366132996,1750079447804,-963.58,0.00016438,2]
[366132997,1750079447814,-490.0,0.00016438,2]
[366132998,1750079447824,-490.0,0.00016438,2]
[366132999,1750079447834,-490.0,0.00016438,2]
[366133000,1750079447844,-490.0,0.00016438,2]
[366133001,1750079447854,-490.0,0.00016438,2]
[366133002,1750079447864,-490.0,0.00016438,2]
[366133003,1750079447874,-917.1,0.00016438,2]
[366133004,1750079447884,-490.0,0.00016438,2]
[366133005,1750079447893,-490.0,0.00016438,2]
[366133006,1750079447903,-490.0,0.00016438,2]
[366133007,1750079447913,-490.0,0.00016438,2]
[366133008,1750079447923,-672.73,0.00016438,2]
[366133009,1750079447932,-490.0,0.00016438,2]
[366133010,1750079447942,-490.0,0.00016438,2]
[366133011,1750079447951,-490.0,0.00016438,2]
[366133012,1750079447961,-490.0,0.00016438,2]
[366133013,1750079447971,-490.0,0.00016438,2]
[366133014,1750079447982,-1030.94,0.00016438,2]
[366133015,1750079447992,-490.0,0.00016438,2]
[366133016,1750079448001,-490.0,0.00016438,2]
[366133017,1750079448011,-490.0,0.00016438,2]
[366133018,1750079448022,-490.0,0.00016438,2]
[366133019,1750079448033,-765.97,0.00016438,2]
[366133020,1750079448043,-490.0,0.00016438,2]
[366133021,1750079448053,-490.0,0.00016438,2]
[366133022,1750079448063,-1100.65,0.00016438,2]
[366133023,1750079448073,-490.0,0.00016438,2]
[366133024,1750079448084,-490.0,0.00016438,2]
[366133025,1750079448094,-806.41,0.00016438,2]
[366133026,1750079448104,-490.0,0.00016438,2]
[366133027,1750079448116,-490.0,0.00016438,2]
[366133028,1750079448126,-490.0,0.00016438,2]
[366133029,1750079448137,-490.0,0.00016438,2]
[366133030,1750079448147,-490.0,0.00016438,2]
[366133031,1750079448158,-490.0,0.00016438,2]
[366133032,1750079448168,-490.0,0.00016438,2]
[366133033,1750079448179,-490.0,0.00016438,2]
[366133034,1750079448189,-490.0,0.00016438,2]
[366133035,1750079448199,-761.87,0.00016438,2]
[366133036,1750079448209,-500.0,0.00016438,2]
[366133037,1750079448219,-490.0,0.00016438,2]
[366133038,1750079448229,-500.0,0.00016438,2]
[366133039,1750079448239,-490.0,0.00016438,2]
[366133040,1750079448250,-547.71,0.00016438,2]
[366133041,1750079448259,-502.29,0.00016438,2]
[366133042,1750079448270,-943.39,0.00016438,2]
[366133043,1750079448285,-490.0,0.00016438,2]
[366133044,1750079448296,-500.15395209,0.00016438,2]
[366133045,1750079448306,-672.44,0.00016438,2]
[366133046,1750079448315,-886.05,0.00016438,2]
[366133047,1750079448325,-490.0,0.00016438,2]
[366133048,1750079448336,-817.28,0.00016438,2]
[366133049,1750079448347,-490.0,0.00016438,2]
[366133050,1750079448357,-493.8,0.00016438,2]
[366133051,1750079448367,-490.0,0.00016438,2]
[366133052,1750079448377,-490.0,0.00016438,2]
[366133053,1750079448388,-490.0,0.00016438,2]
[366133054,1750079448398,-490.0,0.00016438,2]
[366133055,1750079448408,-737.46,0.00016438,2]
[366133056,1750079448418,-490.0,0.00016438,2]
[366133057,1750079448429,-718.16,0.00016438,2]
[366133058,1750079448439,-490.0,0.00016438,2]
[366133059,1750079448450,-490.0,0.00016438,2]
[366133060,1750079448460,-490.0,0.00016438,2]
[366133061,1750079448470,-490.0,0.00016438,2]
[366133062,1750079448480,-490.0,0.00016438,2]
[366133063,1750079448490,-490.0,0.00016438,2]
[366133064,1750079448500,-1456.46,0.00016438,2]
[366133065,1750079448510,-490.0,0.00016438,2]
[366133066,1750079448521,-919.3,0.00016438,2]
[366133067,1750079448531,-490.0,0.00016438,2]
[366133068,1750079448541,-490.0,0.00016438,2]
[366133069,1750079448552,-553.99,0.00016438,2]
[366133070,1750079448562,-383.8919308,0.00016438,2]
[366133071,1750079448572,-490.0,0.00016438,2]
[366133072,1750079448583,-490.0,0.00016438,2]
[366133073,1750079448593,-857.83,0.00016438,2]
[366133074,1750079448604,-490.0,0.00016438,2]
[366133075,1750079448615,-490.0,0.00016438,2]
[366133076,1750079448626,-573.93,0.00016438,2]
[366133077,1750079448637,-492.39604357,0.00016438,2]
[366133078,1750079448647,-490.0,0.00016438,2]
[366133079,1750079448657,-490.0,0.00016438,2]
[366133080,1750079448668,-1473.86,0.00016438,2]
[366133081,1750079448681,-490.0,0.00016438,2]
[366133082,1750079448692,-490.0,0.00016438,2]
[366133083,1750079448702,-493.94,0.00016438,2]
[366133084,1750079448713,-490.0,0.00016438,2]
[366133085,1750079448724,-481.27839089,0.00016438,2]
[366133086,1750079448734,-490.0,0.00016438,2]
[366133087,1750079448745,-870.55,0.00016438,2]
[366133088,1750079448757,-490.0,0.00016438,2]
[366133089,1750079448768,-892.02,0.00016438,2]
[366133090,1750079448778,-490.0,0.00016438,2]
[366133091,1750079448789,-490.0,0.00016438,2]
[366133092,1750079448799,-490.0,0.00016438,2]
[366133093,1750079448809,-844.06,0.00016438,2]
[366133094,1750079448819,-490.0,0.00016438,2]
[366133095,1750079448829,-490.0,0.00016438,2]
[366133096,1750079448840,-490.0,0.00016438,2]
[366133097,1750079448850,-783.59,0.00016438,2]
[366133098,1750079448860,-1562.28,0.00016438,2]
[366133099,1750079448871,-728.61,0.00016438,2]
[366133100,1750079448881,-490.0,0.00016438,2]
[366133101,1750079448891,-490.0,0.00016438,2]
[366133102,1750079448901,-490.0,0.00016438,2]
[366133103,1750079448911,-490.0,0.00016438,2]
[366133104,1750079448921,-490.0,0.00016438,2]
[366133105,1750079448931,-490.0,0.00016438,2]
[366133106,1750079448942,-490.0,0.00016438,2]
[366133107,1750079448951,-490.0,0.00016438,2]
[366133108,1750079448961,-553.12,0.00016438,2]
[366133109,1750079448971,-479.0,0.00016438,2]
[366133110,1750079448981,-490.0,0.00016438,2]
[366133111,1750079448991,-493.09,0.00016438,2]
[366133112,1750079449002,-839.18,0.00016438,2]
[366133113,1750079449012,-490.0,0.00016438,2]
[366133114,1750079449022,-490.0,0.00016438,2]
[366133115,1750079449032,-490.0,0.00016438,2]
[366133116,1750079449042,-938.07,0.00016438,2]
[366133117,1750079449054,-490.0,0.00016438,2]
[366133118,1750079449064,-490.0,0.00016438,2]
[366133119,1750079449074,-490.0,0.00016438,2]
[366133120,1750079449084,-490.0,0.00016438,2]
[366133121,1750079449094,-973.98,0.00016438,2]
[366133122,1750079449104,-490.0,0.00016438,2]
[366133123,1750079449114,-923.33,0.00016438,2]
[366133124,1750079449123,-814.5,0.00016438,2]
[366133125,1750079449134,-490.0,0.00016438,2]
[366133126,1750079449144,-490.0,0.00016438,2]
[366133127,1750079449155,-625.81,0.00016438,2]
[366133128,1750079449166,-490.0,0.00016438,2]
[366133129,1750079449176,-490.0,0.00016438,2]
[366133130,1750079449186,-490.0,0.00016438,2]
[366133131,1750079449196,-490.0,0.00016438,2]
[366133132,1750079449206,-490.0,0.00016438,2]
[366133133,1750079449217,-1414.38,0.00016438,2]
[366133134,1750079449227,-506.54260415,0.00016438,2]
[366133135,1750079449238,-493.27370035,0.00016438,2]
[366133136,1750079449248,-505.18,0.00016438,2]
[366133137,1750079449258,-490.0,0.00016438,2]
[366133138,1750079449268,-1184.38,0.00016438,2]
[366133139,1750079449279,-490.0,0.00016438,2]
[366133140,1750079449289,-490.0,0.00016438,2]
[366133141,1750079449299,-1242.97,0.00016438,2]
[366133142,1750079449308,-490.0,0.00016438,2]
[366133143,1750079449318,-490.0,0.00016438,2]
[366133144,1750079449328,-541.01,0.00016438,2]
[366133145,1750079449339,-918.57,0.00016438,2]
[366133146,1750079449350,-490.0,0.00016438,2]
[366133147,1750079449360,-490.0,0.00016438,2]
[366133148,1750079449370,-515.21,0.00016438,2]
[366133149,1750079449380,-490.0,0.00016438,2]
[366133150,1750079449391,-1636.07,0.00016438,2]
[366133151,1750079449401,-490.0,0.00016438,2]
[366133152,1750079449411,-490.0,0.00016438,2]
[366133153,1750079449421,-490.0,0.00016438,2]
[366133154,1750079449431,-490.0,0.00016438,2]
[366133155,1750079449441,-490.0,0.00016438,2]
[366133156,1750079449451,-559.72,0.00016438,2]
[366133157,1750079449461,-490.0,0.00016438,2]
[366133158,1750079449471,-490.0,0.00016438,2]
[366133159,1750079449481,-714.54,0.00016438,2]
[366133160,1750079449490,-490.0,0.00016438,2]
[366133161,1750079449500,-490.0,0.00016438,2]
[366133162,1750079449524,-1272.81,0.00016438,2]
[366133163,1750079449536,-490.0,0.00016438,2]
[366133164,1750079449546,-490.0,0.00016438,2]
[366133165,1750079449557,-1991.32,0.00016438,2]
[366133166,1750079449568,-490.0,0.00016438,2]
[366133167,1750079449579,-490.0,0.00016438,2]
[366133168,1750079449711,-490.0,0.00016438,2]
[366133169,1750079449721,-490.0,0.00016438,2]
[366133170,1750079449732,-490.0,0.00016438,2]
[366133171,1750079449742,-490.0,0.00016438,2]
[366133172,1750079449752,-490.0,0.00016438,2]
[366133173,1750079449762,-623.13,0.00016438,2]
[366133174,1750079449772,-1443.51,0.00016438,2]
[366133175,1750079449782,-490.0,0.00016438,2]
[366133176,1750079449791,-490.0,0.00016438,2]
[366133177,1750079449802,-984.26,0.00016438,2]
[366133178,1750079449811,-490.0,0.00016438,2]
[366133179,1750079449821,-500.0,0.00016438,2]
[366133180,1750079449831,-490.0,0.00016438,2]
[366133181,1750079449842,-500.0,0.00016438,2]
[366133182,1750079449852,-490.0,0.00016438,2]
[366133183,1750079449862,-490.0,0.00016438,2]
[366133184,1750079449872,-490.0,0.00016438,2]
[366133185,1750079449882,-538.26,0.00016438,2]
[366133186,1750079449892,-490.0,0.00016438,2]
[366133187,1750079449901,-1111.75573755,0.00016438,2]
[366133188,1750079471770,211.0,0.0001504,2]
[366133189,1750079503274,528.0,0.00015051,2]
[366133190,1750079506939,528.0,0.00015478,2]
[366133191,1750079519779,483.87490204,0.0002465,120]
[366133192,1750079567040,500.0,0.00015068,2]
[366133193,1750079651917,202.0,0.00015445,2]
[366133194,1750079689514,756.58,0.00015445,2]
[366133195,1750079708596,2751.0,0.00015433,2]
[366133196,1750079768726,200.0,0.00015357,2]
[366133197,1750079829721,201.39,0.00012275,2]
[366133198,1750079927525,23900.0,0.00015335,2]
[366133199,1750079953963,200.0,0.00015343,2]
[366133201,1750080011816,202.0,0.00015152,2]
[366133202,1750080030432,200.0,0.00015076,2]
[366133203,1750080065693,1969.54,0.00015322,2]
[366133204,1750080102313,155.1,0.00013699,2]
[366133205,1750080104108,200.0,0.00015322,7]
[366133207,1750080191690,10000.0,0.000154,2]
[366133208,1750080192123,244.17354754,0.0002,30]
[366133209,1750080245236,10000.0,0.000154,2]
[366133210,1750080246071,10000.0,0.00024658,120]
[366133211,1750080254306,10000.0,0.00024658,120]
[366133212,1750080261682,10000.0,0.00024658,120]
[366133213,1750080263622,250.0,0.00015259,2]
[366133214,1750080268217,10000.0,0.00024658,120]
[366133215,1750080274569,10000.0,0.00024658,120]
[366133216,1750080282909,10000.0,0.00024658,120]
[366133217,1750080288527,10000.0,0.00024658,120]
[366133218,1750080299717,10000.0,0.00016,30]
[366133219,1750080311405,840.78961898,0.000154,2]
[366133220,1750080320672,4478.65530938,9e-05,2]
[366133221,1750080321808,2372.01,0.00016,30]
[366133222,1750080338451,28886.76934645,9e-05,2]
[366133223,1750080371710,202.0,0.00014876,2]
[366133224,1750080373358,1000.0,0.00015279,2]
[366133225,1750080384645,3227.81272738,0.00016,30]
[366133226,1750080384673,6528.01727262,0.00016,30]
[366133227,1750080394579,150.0,0.00015265,2]
[366133228,1750080413163,666.0,0.00015258,2]
[366133229,1750080421724,480.25658204,0.00015,14]
[366133230,1750080434318,6909.03839118,0.00015,2]
[366133231,1750080437677,14296.76422508,0.00015,2]
[366133232,1750080443953,3129.78915818,0.0001305,2]
[366133233,1750080497278,9823.83015614,0.0001439,2]
[366133234,1750080508055,1879.2785989,0.0001,2]
[366133235,1750080510080,381.09919585,7.888e-05,2]
[366133236,1750080522968,261.02608943,0.000107,2]
[366133238,1750080527057,1370.31462887,0.00010136,2]
[366133239,1750080527878,32047.42656924,0.00013368,2]
[366133246,1750080551412,204.0,0.00014876,2]
[366133250,1750080584826,201844.17185657,0.000154,2]
[366133257,1750080631778,-202.0,0.00015603,2]
[366133258,1750080631789,-168.0,0.00015931,2]
[366133259,1750080631799,-168.0,0.0001596,2]
[366133260,1750080631810,-1200.0,0.00015999,2]
[366133261,1750080631820,-300.0,0.00015999,2]
[366133262,1750080631830,-46711.12371702,0.00016,2]
[366133662,1750080637669,-500.0,0.00015999,2]
[366133663,1750080637681,-409.03700891,0.00015999,2]
[366133664,1750080637693,-307.45524351,0.00015999,2]
[366133665,1750080637704,-863.52708122,0.00016,2]
[366133666,1750080637717,-12472.0685145,0.00016,2]
[366133667,1750080637731,-1347.47722957,0.00016,2]
[366133668,1750080637837,-5295.13272393,0.00016,2]
[366133829,1750080639837,-153.08170905,0.000159,2]
[366133831,1750080639848,-4136.25205611,0.00016,2]
[366133834,1750080639862,-461743.25815203,0.00016,2]
[366133836,1750080639874,-1000.62,0.00016,2]
[366133838,1750080639885,-498.91,0.00016,2]
[366133840,1750080639897,-305.61,0.00016,2]
[366133842,1750080639908,-207.4,0.00016014,2]
[366133845,1750080639922,-7142.856,0.00016014,2]
[366133847,1750080639934,-509.14,0.00016023,2]
[366133849,1750080639945,-301.2,0.00016023,2]
[366133851,1750080639957,-495.21,0.00016023,2]
[366133854,1750080639969,-505.65,0.00016023,2]
[366133856,1750080639981,-501.05,0.00016023,2]
[366133858,1750080639992,-303.27,0.00016023,2]
[366133860,1750080640004,-501.25,0.00016055,2]
[366133862,1750080640016,-498.16,0.00016055,2]
[366133865,1750080640029,-301.95,0.00016055,2]
[366133947,1750080640853,-504.51,0.00016055,2]
[366133952,1750080640889,-2409.31186547,0.00016069,2]
[366133956,1750080640918,-495.13,0.00016097,2]
[366133960,1750080640950,-501.41,0.00016097,2]
[366133964,1750080640977,-509.34,0.00016097,2]
[366133966,1750080640988,-193.90715082,0.00016137,2]
[366133968,1750080640998,-481.56145504,0.00016137,2]
[366133970,1750080641008,-26407.4,0.00016138,2]
[366133972,1750080641017,-300.31,0.00016153,2]
[366133974,1750080641027,-304.07,0.00016153,2]
[366133976,1750080641040,-493.04,0.00016153,2]
[366133978,1750080641050,-507.54,0.00016153,2]
[366133980,1750080641059,-502.95,0.00016153,2]
[366133982,1750080641069,-498.15,0.00016153,2]
[366133984,1750080641080,-501.28,0.00016153,2]
[366133986,1750080641089,-303.22,0.00016154,2]
[366133988,1750080641099,-305.81,0.00016155,2]
[366133990,1750080641110,-503.97,0.00016161,2]
[366133991,1750080641119,-512.2670802,0.00016164,2]
[366133992,1750080641129,-700.0,0.00016164,2]
[366133993,1750080641139,-300.76,0.00016164,2]
[366133994,1750080641149,-500.25,0.00016164,2]
[366133995,1750080641159,-493.94,0.00016164,2]
[366133996,1750080641169,-504.32,0.00016164,2]
[366133997,1750080641179,-303.14,0.00016164,2]
[366133999,1750080641188,-494.19,0.00016164,2]
[366134001,1750080641198,-496.59,0.00016164,2]
[366134003,1750080641207,-305.41,0.00016164,2]
[366134005,1750080641217,-503.58,0.00016164,2]
[366134007,1750080641227,-508.35,0.00016164,2]
[366134009,1750080641237,-500.54,0.00016164,2]
[366134011,1750080641247,-305.77,0.00016164,2]
[366134014,1750080641257,-492.0,0.00016164,2]
[366134016,1750080641267,-495.13,0.00016164,2]
[366134017,1750080641278,-302.12,0.00016164,2]
[366134019,1750080641287,-499.95,0.00016164,2]
[366134021,1750080641297,-300.76,0.00016175,2]
[366134023,1750080641308,-303.28,0.00016175,2]
[366134025,1750080641319,-301.16,0.00016175,2]
[366134027,1750080641329,-304.02,0.00016175,2]
[366134029,1750080641338,-528.0,0.00016175,2]
[366134031,1750080641348,-150.0,0.00016191,2]
[366134032,1750080641358,-150.0,0.00016227,2]
[366134033,1750080641369,-150.0,0.00016237,2]
[366134034,1750080641379,-150.0,0.00016238,2]
[366134035,1750080641394,-4953.03817412,0.00016238,2]
[366134036,1750080641405,-680.20763581,0.0001624,2]
[366134037,1750080641416,-150.0,0.00016244,2]
[366134039,1750080641429,-150.0,0.00016246,2]
[366134041,1750080641440,-150.0,0.00016253,2]
[366134043,1750080641450,-150.0,0.00016274,2]
[366134045,1750080641461,-151.0,0.00016291,2]
[366134047,1750080641471,-151.0,0.00016291,2]
[366134049,1750080641481,-500.0,0.00016291,2]
[366134050,1750080641491,-500.0,0.00016291,2]
[366134051,1750080641501,-500.0,0.00016291,2]
[366134052,1750080641510,-300.80041286,0.00016291,2]
[366134054,1750080641520,-500.0,0.00016291,2]
[366134055,1750080641529,-500.0,0.00016291,2]
[366134056,1750080641539,-500.0,0.00016291,2]
[366134057,1750080641548,-500.0,0.00016291,2]
[366134058,1750080641557,-500.0,0.00016291,2]
[366134059,1750080641567,-500.0,0.00016291,2]
[366134060,1750080641576,-500.0,0.00016291,2]
[366134061,1750080641586,-500.0,0.00016291,2]
[366134062,1750080641595,-500.0,0.00016291,2]
[366134063,1750080641604,-500.0,0.00016291,2]
[366134064,1750080641614,-500.0,0.00016291,2]
[366134065,1750080641624,-500.0,0.00016291,2]
[366134066,1750080641633,-500.0,0.00016291,2]
[366134067,1750080641646,-500.0,0.00016291,2]
[366134068,1750080641656,-500.0,0.00016291,2]
[366134069,1750080641665,-500.0,0.00016291,2]
[366134070,1750080641675,-500.0,0.00016291,2]
[366134071,1750080641685,-500.0,0.00016291,2]
[366134072,1750080641695,-500.0,0.00016291,2]
[366134073,1750080641704,-151.0,0.00016291,2]
[366134074,1750080641714,-500.0,0.00016291,2]
[366134075,1750080641723,-500.0,0.00016291,2]
[366134076,1750080641733,-500.0,0.00016291,2]
[366134077,1750080641743,-500.0,0.00016291,2]
[366134078,1750080641753,-500.0,0.00016291,2]
[366134079,1750080641763,-500.0,0.00016291,2]
[366134080,1750080641773,-500.0,0.00016291,2]
[366134081,1750080641783,-500.0,0.00016291,2]
[366134082,1750080641792,-1685.3671,0.00016293,2]
[366134083,1750080641803,-1004.42124907,0.000163,2]
[366134084,1750080641812,-163.09926892,0.000163,2]
[366134085,1750080641822,-26407.37,0.00016302,2]
[366134086,1750080641832,-150.0,0.00016306,2]
[366134087,1750080641842,-4953.03817407,0.0001631,2]
[366134088,1750080641852,-150.0,0.00016315,2]
[366134089,1750080641862,-202.0,0.00016331,3]
[366134090,1750080641871,-162.93565647,0.00016335,2]
[366134091,1750080641881,-500.0,0.00016338,2]
[366134092,1750080641893,-36924.3565,0.00016338,2]
[366134093,1750080641903,-879.9742,0.00016338,2]
[366134094,1750080641912,-18592.0986,0.00016338,2]
[366134095,1750080641922,-150.0,0.00016346,2]
[366134096,1750080641932,-1000.0,0.00016351,2]
[366134097,1750080641942,-26407.37,0.00016365,2]
[366134098,1750080641952,-4953.03817407,0.00016382,2]
[366134099,1750080641961,-48000.0,0.000164,2]
[366134100,1750080641971,-150.6,0.000164,2]
[366134101,1750080641981,-150.0,0.000164,2]
[366134102,1750080641991,-150.0,0.000164,2]
[366134103,1750080642002,-150.23,0.000164,2]
[366134104,1750080642012,-407.88,0.000164,2]
[366134105,1750080642022,-1869.36968275,0.000164,3]
[366134106,1750080642033,-150.0,0.00016404,2]
[366134107,1750080642044,-305.55,0.00016407,2]
[366134108,1750080642053,-304.19,0.00016407,2]
[366134109,1750080642062,-150.0,0.00016411,2]
[366134110,1750080642072,-1000.0,0.00016415,2]
[366134111,1750080642082,-150.0,0.00016416,2]
[366134112,1750080642092,-350.0,0.00016422,2]
[366134113,1750080642102,-150.42,0.00016423,2]
[366134114,1750080642112,-150.42,0.00016423,2]
[366134115,1750080642122,-150.42,0.00016426,2]
[366134116,1750080642132,-150.42,0.00016426,2]
[366134117,1750080642144,-170.49396156,0.00016428,2]
[366134118,1750080642154,-150.42,0.00016428,2]
[366134119,1750080642164,-150.42,0.00016428,2]
[366134120,1750080642174,-87566.4159999,0.00016429,2]
[366134121,1750080642184,-232281.14210001,0.00016433,2]
[366134122,1750080642193,-300.61,0.00016437,2]
[366134123,1750080642203,-468.60163255,0.00016438,2]
[366134124,1750080642212,-491.14673825,0.00016438,2]
[366134125,1750080642222,-490.0,0.00016438,2]
[366134126,1750080642231,-490.0,0.00016438,2]
[366134127,1750080642241,-490.0,0.00016438,2]
[366134128,1750080642251,-250.0,0.00016438,2]
[366134129,1750080642260,-413.65,0.00016438,2]
[366134130,1750080642270,-550.81,0.00016438,2]
[366134131,1750080642280,-490.0,0.00016438,2]
[366134132,1750080642289,-490.0,0.00016438,2]
[366134133,1750080642299,-490.0,0.00016438,2]
[366134134,1750080642308,-490.0,0.00016438,2]
[366134135,1750080642317,-490.0,0.00016438,2]
[366134136,1750080642326,-490.0,0.00016438,2]
[366134137,1750080642336,-490.0,0.00016438,2]
[366134138,1750080642346,-490.0,0.00016438,2]
[366134139,1750080642355,-490.0,0.00016438,2]
[366134140,1750080642364,-490.0,0.00016438,2]
[366134141,1750080642374,-490.0,0.00016438,2]
[366134142,1750080642384,-254.08113285,0.00016438,2]
[366134143,1750080642394,-490.0,0.00016438,2]
[366134144,1750080642403,-547.33,0.00016438,2]
[366134145,1750080642413,-490.0,0.00016438,2]
[366134146,1750080642423,-490.0,0.00016438,2]
[366134147,1750080642432,-490.0,0.00016438,2]
[366134148,1750080642442,-490.0,0.00016438,2]
[366134149,1750080642451,-490.0,0.00016438,2]
[366134150,1750080642460,-490.0,0.00016438,2]
[366134152,1750080642469,-490.0,0.00016438,2]
[366134154,1750080642479,-490.0,0.00016438,2]
[366134155,1750080642488,-490.0,0.00016438,2]